bitfinex-derivatives/quotes_SOLF0:USTF0_20250524
["timestamp","ask_amount","ask_price","bid_price","bid_amount"]
[1748061967843,4.60127971,175.54,175.43,113.9]
[1748061968038,1.989,175.53,175.43,113.9]
[1748061968338,5.6961,175.51,175.47,5.6971]
[1748061968537,124.19737971,175.51,175.47,5.6971]
[1748061968841,5.6966,175.5,175.47,0.03685825]
[1748061969333,118.53844224,175.51,175.47,0.03685825]
[1748061969334,113.93716253,175.51,175.47,0.03685825]
[1748061970036,113.93716253,175.51,175.48,5.6967]
[1748061970234,113.93716253,175.51,175.47,0.03685825]
[1748061970534,113.93716253,175.51,175.49,5.6967]
[1748061972147,113.93716253,175.51,175.48,5.6969]
[1748061972148,119.63336253,175.51,175.48,5.6969]
[1748061972335,113.93716253,175.51,175.47,0.03685825]
[1748061972640,119.63326253,175.51,175.47,5.73395825]
[1748061973046,119.63326253,175.51,175.47,0.03685825]
[1748061973344,119.63326253,175.51,175.47,5.73405825]
[1748061973735,119.63326253,175.51,175.47,0.03685825]
[1748061974544,119.63326253,175.51,175.48,5.697]
[1748061976144,113.93716253,175.51,175.48,5.697]
[1748061976348,113.93716253,175.51,175.49,5.6965]
[1748061976541,113.93716253,175.51,175.47,0.03685825]
[1748061976742,4.60127971,175.5,175.47,0.03685825]
[1748061977853,5.6969,175.49,175.47,0.03685825]
[1748061982052,5.6965,175.5,175.47,5.73415825]
[1748061982650,5.6967,175.49,175.47,0.03685825]
[1748061985347,5.6965,175.5,175.47,5.73415825]
[1748061986247,113.93716253,175.51,175.47,0.03685825]
[1748061986951,119.63326253,175.51,175.48,5.6968]
[1748061987855,119.63326253,175.51,175.47,5.73405825]
[1748061988053,5.6964,175.5,175.47,5.73405825]
[1748061989057,113.93716253,175.51,175.47,0.03685825]
[1748061990561,5.6969,175.49,175.47,0.03685825]
[1748061990759,113.93716253,175.51,175.47,0.03685825]
[1748061991660,119.63346253,175.51,175.48,5.697]
[1748061992359,119.63346253,175.51,175.47,5.73405825]
[1748061992558,113.93716253,175.51,175.47,0.03685825]
[1748061992961,113.93716253,175.51,175.48,5.6968]
[1748061993162,113.93716253,175.51,175.47,0.03685825]
[1748061993663,0.03716253,175.51,175.5,5.6964]
[1748061997367,6.253e-05,175.51,175.5,11.3964]
[1748061997567,6.253e-05,175.51,175.5,5.6964]
[1748062005264,6.253e-05,175.51,175.49,5.6967]
[1748062007075,6.253e-05,175.51,175.5,5.6964]
[1748062009778,6.253e-05,175.51,175.49,5.6966]
[1748062010081,6.253e-05,175.51,175.47,0.03685825]
[1748062010266,6.253e-05,175.51,175.5,5.6964]
[1748062010472,6.253e-05,175.51,175.5,119.5164]
[1748062014977,6.253e-05,175.51,175.5,121.3987]
[1748062021984,6.253e-05,175.51,175.5,5.6964]
[1748062026288,6.253e-05,175.51,175.49,5.6966]
[1748062026594,6.253e-05,175.51,175.47,0.03685825]
[1748062026779,5.69636253,175.51,175.48,5.6968]
[1748062026982,6.253e-05,175.51,175.47,0.03685825]
[1748062027393,6.253e-05,175.51,175.5,5.6964]
[1748062030292,6.253e-05,175.51,175.49,5.6966]
[1748062033293,6.253e-05,175.51,175.5,5.6964]
[1748062052308,6.253e-05,175.51,175.5,113.9164]
[1748062053012,6.253e-05,175.51,175.5,118.9870583]
[1748062054213,6.253e-05,175.51,175.5,10.7670583]
[1748062054511,6.253e-05,175.51,175.5,124.5670583]
[1748062055114,117.716,175.63,175.59,5.6932]
[1748062055310,117.716,175.63,175.5,120.7747583]
[1748062055512,117.716,175.63,175.5,5.0706583]
[1748062055712,4.60007774,175.57,175.53,5.6953]
[1748062056313,4.64249261,175.57,175.53,5.73338554]
[1748062056916,0.04241487,175.57,175.53,0.03808554]
[1748062057506,0.04241487,175.57,175.56,5.6944]
[1748062062125,0.04241487,175.57,175.56,5.6944]
[1748062071438,1.487e-05,175.57,175.56,5.6944]
[1748062071738,1.487e-05,175.57,175.56,119.9144]
[1748062080642,1.487e-05,175.57,175.56,129.61415705]
[1748062083649,1.8832,175.66,175.56,129.61415705]
[1748062083650,118.0306,175.69,175.56,123.91975705]
[1748062083849,118.0306,175.69,175.57,1.9794]
[1748062084053,3.8306,175.69,175.59,4.59827518]
[1748062084352,3.8306,175.69,175.68,5.6905]
[1748062085749,3.8306,175.69,175.67,0.04136914]
[1748062086449,3.8306,175.69,175.68,5.6905]
[1748062087850,3.8306,175.69,175.67,0.04136914]
[1748062088545,9.5209,175.69,175.67,0.04136914]
[1748062089551,5.6905,175.68,175.67,0.04136914]
[1748062091349,9.5209,175.69,175.67,0.04136914]
[1748062092450,5.6905,175.68,175.67,0.04136914]
[1748062092847,3.8306,175.69,175.67,0.04136914]
[1748062093651,3.8306,175.69,175.68,5.6905]
[1748062097054,1.9623,175.69,175.68,5.6905]
[1748062097254,1.9623,175.69,175.67,0.04136914]
[1748062097654,1.9623,175.69,175.67,5.73206914]
[1748062101156,1.9623,175.69,175.68,5.6905]
[1748062102357,0.03630843,175.7,175.69,5.6902]
[1748062103556,0.03630843,175.7,175.68,5.6904]
[1748062105055,0.03630843,175.7,175.67,0.04136914]
[1748062105555,5.6902,175.69,175.67,0.04136914]
[1748062105756,4.63458361,175.7,175.67,0.04136914]
[1748062106260,5.6902,175.69,175.67,0.04136914]
[1748062106754,0.03630843,175.7,175.67,0.04136914]
[1748062108557,5.6905,175.68,175.67,0.04136914]
[1748062122862,7.7111,175.68,175.67,0.04136914]
[1748062128267,1.9266,175.69,175.67,0.04136914]
[1748062128466,7.6169,175.69,175.67,0.04136914]
[1748062128666,0.03630843,175.7,175.67,0.04136914]
[1748062129267,0.03630843,175.7,175.68,5.6903]
[1748062129666,0.03630843,175.7,175.67,0.04136914]
[1748062130576,0.03630843,175.7,175.69,5.6902]
[1748062130878,0.03630843,175.7,175.67,0.04136914]
[1748062131375,5.72620843,175.7,175.67,0.04136914]
[1748062132080,0.03630843,175.7,175.67,0.04136914]
[1748062132677,5.72640843,175.7,175.67,5.73226914]
[1748062133280,0.03630843,175.7,175.67,0.04136914]
[1748062133777,5.6904,175.69,175.67,0.04136914]
[1748062134475,5.6905,175.68,175.67,0.04136914]
[1748062135581,5.72650843,175.7,175.67,0.04136914]
[1748062136877,5.72650843,175.7,175.67,5.73216914]
[1748062137882,5.72650843,175.7,175.68,5.6905]
[1748062138176,0.03630843,175.7,175.68,5.6905]
[1748062138382,0.03630843,175.7,175.67,0.04136914]
[1748062138678,0.03630843,175.7,175.68,5.6905]
[1748062139184,0.03630843,175.7,175.69,5.6902]
[1748062145086,0.03630843,175.7,175.67,0.04136914]
[1748062146187,0.03630843,175.7,175.68,5.6905]
[1748062147182,5.72630843,175.7,175.67,5.73206914]
[1748062147584,0.03630843,175.7,175.67,0.04136914]
[1748062148987,0.03630843,175.7,175.68,5.6905]
[1748062153389,0.03630843,175.7,175.69,5.6902]
[1748062154988,0.03630843,175.7,175.68,5.6905]
[1748062156093,0.03630843,175.7,175.69,5.6902]
[1748062170992,0.03630843,175.7,175.67,0.04136914]
[1748062171190,2.93866522,175.69,175.68,5.6903]
[1748062171493,2.93866522,175.69,175.67,0.04136914]
[1748062171795,2.93866522,175.69,175.67,5.73216914]
[1748062171990,2.93866522,175.69,175.67,0.04136914]
[1748062172297,2.93866522,175.68,175.67,0.04136914]
[1748062173595,2.93866522,175.68,175.67,5.73226914]
[1748062173794,5.72640843,175.7,175.67,5.73226914]
[1748062174497,5.6903,175.69,175.67,0.04136914]
[1748062175893,0.03630843,175.7,175.67,0.04136914]
[1748062176100,5.6906,175.68,175.67,0.04136914]
[1748062179099,5.6903,175.69,175.67,0.04136914]
[1748062180200,5.72630843,175.7,175.67,0.04136914]
[1748062181602,5.72630843,175.7,175.67,5.73206914]
[1748062181892,5.72630843,175.7,175.67,0.04136914]
[1748062183305,0.03630843,175.7,175.67,0.04136914]
[1748062184097,0.03630843,175.7,175.69,5.6902]
[1748062188301,0.03630843,175.7,175.69,119.4102]
[1748062201415,0.03630843,175.7,175.69,5.6902]
[1748062202109,0.03630843,175.7,175.69,227.4702]
[1748062209319,8.43e-06,175.7,175.69,227.4702]
[1748062210417,13.99595048,175.86,175.69,722.05767207]
[1748062210620,13.99595048,175.86,175.81,2.93344059]
[1748062210918,13.99595048,175.86,175.84,5.6851]
[1748062211119,13.99595048,175.87,175.84,5.6851]
[1748062211414,16.96779031,175.87,175.84,5.72843236]
[1748062211619,14.03425147,175.87,175.86,5.6847]
[1748062212127,14.03425147,175.87,175.85,5.685]
[1748062213924,14.03425147,175.87,175.86,5.6847]
[1748062214123,14.03425147,175.87,175.84,0.04333236]
[1748062214318,14.03425147,175.87,175.85,5.6848]
[1748062215223,0.03830099,175.87,175.85,5.6848]
[1748062216412,0.03830099,175.87,175.84,5.72863236]
[1748062218422,0.03830099,175.87,175.85,5.685]
[1748062219223,0.03830099,175.87,175.86,5.6847]
[1748062219424,1.9948,175.96,175.86,113.6]
[1748062219730,3.8664,175.95,175.86,113.6]
[1748062219921,4.58305268,175.94,175.8,491.44]
[1748062220322,5.684,175.89,175.84,5.6851]
[1748062220524,0.03973001,175.89,175.85,0.04092529]
[1748062221629,5.6842,175.88,175.85,0.04092529]
[1748062221927,0.03973001,175.89,175.85,0.04092529]
[1748062223030,0.03973001,175.89,175.88,5.6841]
[1748062224926,0.03973001,175.89,175.85,0.04092529]
[1748062225431,0.03973001,175.89,175.85,117.02092529]
[1748062226734,0.03973001,175.89,175.86,5.6847]
[1748062229037,0.03973001,175.89,175.87,5.6844]
[1748062230135,0.03973001,175.89,175.88,5.6841]
[1748062234241,0.03973001,175.89,175.88,122.6441]
[1748062236643,0.03973001,175.89,175.88,5.6841]
[1748062236938,0.03973001,175.89,175.88,122.6441]
[1748062245349,3.001e-05,175.89,175.88,127.22715268]
[1748062245650,3.796,176.01,175.88,121.54305268]
[1748062246051,5.6808,175.99,175.88,121.54305268]
[1748062246557,5.6808,175.99,175.94,5.6819]
[1748062246744,5.6808,175.98,175.94,122.6219]
[1748062246943,5.6808,175.98,175.94,122.66559975]
[1748062247750,5.6806,175.99,175.94,122.66559975]
[1748062247948,3.796,176.01,175.94,122.66559975]
[1748062248249,5.6809,175.98,175.94,122.66559975]
[1748062249046,3.796,176.01,175.94,122.66559975]
[1748062249047,3.796,176.01,175.94,0.04369975]
[1748062249649,5.6817,175.96,175.94,0.04369975]
[1748062250346,5.6818,175.95,175.94,0.04369975]
[1748062251961,3.796,176.01,175.94,0.04369975]
[1748062252249,3.796,176.01,175.94,5.72569975]
[1748062253252,5.6811,175.98,175.94,5.72559975]
[1748062253651,5.6811,175.98,175.94,0.04369975]
[1748062253849,5.6803,176.0,175.96,5.6812]
[1748062254350,9.476,176.01,175.97,5.6811]
[1748062255053,5.6802,176.0,175.97,5.6811]
[1748062255954,5.6802,176.0,175.96,5.6814]
[1748062257656,5.6802,176.0,175.97,5.6812]
[1748062257956,5.6802,176.0,175.95,116.52]
[1748062258150,5.6802,176.0,175.96,5.6814]
[1748062258649,5.6805,175.99,175.96,5.6814]
[1748062258955,5.6803,176.0,175.97,5.6809]
[1748062261757,5.6803,176.0,175.96,122.1814]
[1748062261958,5.6803,176.0,175.96,116.5]
[1748062262359,4.58305268,176.02,175.94,116.54369975]
[1748062262548,5.7892,176.01,175.94,116.54369975]
[1748062262747,5.6818,175.95,175.94,0.04369975]
[1748062274765,121.08305268,176.0,175.94,0.04369975]
[1748062275157,5.6813,175.97,175.94,0.04369975]
[1748062275768,5.6809,175.98,175.95,5.6818]
[1748062275964,5.7892,176.01,175.94,0.04369975]
[1748062276868,5.6806,175.99,175.96,5.6813]
[1748062277470,5.6803,176.0,175.96,5.6813]
[1748062277671,3.9031,176.01,175.97,5.6811]
[1748062278068,121.10305268,176.03,175.99,5.6805]
[1748062278368,121.10305268,176.03,175.99,5.72095304]
[1748062278567,121.10305268,176.03,175.99,0.04045304]
[1748062278769,1.9866,176.05,175.99,0.04045304]
[1748062279472,5.6795,176.03,175.99,5.72095304]
[1748062279972,5.6797,176.02,175.99,5.72095304]
[1748062280873,5.68,176.01,175.99,0.04045304]
[1748062281066,4.58305268,176.03,175.99,0.04045304]
[1748062281271,1.9616,176.02,175.99,0.04045304]
[1748062281963,5.6802,176.0,175.99,0.04045304]
[1748062286070,5.68,176.01,175.99,0.04045304]
[1748062286276,115.58,176.04,175.99,0.04045304]
[1748062286772,5.6802,176.0,175.99,0.04045304]
[1748062289681,5.68,176.01,175.99,0.04045304]
[1748062289883,115.58,176.04,175.99,0.04045304]
[1748062290073,5.6798,176.02,175.99,0.04045304]
[1748062290270,115.58,176.1,175.99,0.04045304]
[1748062290779,4.58305268,176.08,175.99,0.04045304]
[1748062290975,4.58305268,176.05,176.02,0.03660597]
[1748062291177,2.0358,176.04,175.95,7.6702]
[1748062291381,2.0358,176.04,175.94,115.58]
[1748062291782,5.6811,175.98,175.94,121.2619]
[1748062292177,5.71832575,175.98,175.94,121.30342459]
[1748062292381,0.03722575,175.98,175.94,115.62152459]
[1748062293183,0.03722575,175.98,175.95,5.6816]
[1748062293982,0.03722575,175.98,175.94,0.04152459]
[1748062294983,5.6814,175.97,175.94,0.04152459]
[1748062296280,0.03722575,175.98,175.94,5.72362459]
[1748062297091,5.71822575,175.98,175.94,5.72362459]
[1748062298892,13.99595048,176.06,175.94,0.04152459]
[1748062299090,13.99595048,176.06,175.93,115.56]
[1748062299894,13.99595048,176.06,175.98,0.04231098]
[1748062300093,115.58,176.05,175.98,0.04231098]
[1748062300290,4.57698757,176.04,175.98,0.04231098]
[1748062300490,5.6795,176.03,175.98,0.04231098]
[1748062300690,4.57698757,176.04,175.98,0.04231098]
[1748062301596,5.6801,176.01,175.98,0.04231098]
[1748062304299,5.6801,176.01,175.98,5.72311098]
[1748062305098,5.6797,176.02,175.98,5.72311098]
[1748062305492,115.56,176.08,175.99,115.56]
[1748062305693,115.56,176.08,176.02,0.04287463]
[1748062306000,5.6785,176.06,176.02,5.72227463]
[1748062306804,115.56,176.08,176.02,0.04287463]
[1748062307403,5.6785,176.06,176.02,5.72237463]
[1748062308003,5.6786,176.05,176.02,5.72237463]
[1748062308503,5.6784,176.06,176.02,5.72237463]
[1748062310205,5.6787,176.05,176.02,5.72237463]
[1748062310500,115.56,176.08,176.02,0.04287463]
[1748062310898,5.6787,176.05,176.02,0.04287463]
[1748062311103,115.56,176.08,176.02,0.04287463]
[1748062311794,115.56,176.08,176.02,5.72237463]
[1748062312901,115.56,176.08,176.02,0.04287463]
[1748062313405,115.56,176.08,176.02,5.72227463]
[1748062313704,5.6785,176.06,176.02,5.72227463]
[1748062314404,5.6785,176.06,176.03,5.6791]
[1748062316600,15.3413,176.14,176.02,0.04287463]
[1748062316601,2.0163,176.14,176.02,0.04287463]
[1748062316799,130.19595048,176.15,176.06,0.04122891]
[1748062317003,130.19595048,176.15,176.06,107.98122891]
[1748062317199,130.19595048,176.15,176.06,0.04122891]
[1748062317412,134.76643753,176.15,176.06,0.04122891]
[1748062317593,5.8333,176.14,176.06,0.04122891]
[1748062317796,5.6777,176.08,176.06,0.04122891]
[1748062318203,10.40378705,176.14,176.06,0.04122891]
[1748062318599,8.42778705,176.14,176.06,0.04122891]
[1748062319694,4.5738304,176.11,176.06,0.04122891]
[1748062319897,120.7538304,176.11,176.06,0.04122891]
[1748062320098,4.57434398,176.1,175.86,21.03857401]
[1748062320314,4.57434398,176.07,175.93,10.4215532]
[1748062320603,5.6801,176.01,175.96,5.6812]
[1748062320804,116.18,176.06,175.94,116.18]
[1748062321204,0.04091303,176.02,175.98,0.04075759]
[1748062323110,0.04091303,176.02,176.01,5.6799]
[1748062329705,0.04091303,176.02,175.99,116.2]
[1748062330609,0.04091303,176.02,176.0,5.6802]
[1748062331301,0.04091303,176.02,176.01,5.6799]
[1748062336715,5.6779,176.08,176.05,5.6786]
[1748062336915,1.9152,176.12,176.02,116.18]
[1748062337218,7.5916,176.12,176.03,107.94]
[1748062337413,1.9152,176.12,176.03,107.94]
[1748062337609,1.9152,176.12,176.06,5.71594186]
[1748062338016,5.6767,176.11,176.06,5.71594186]
[1748062338316,5.6767,176.11,176.07,5.6778]
[1748062342412,5.677,176.1,176.06,5.71614186]
[1748062342918,4.57146483,176.12,176.06,0.03794186]
[1748062345721,5.6775,176.09,176.06,0.03794186]
[1748062346325,5.6777,176.08,176.06,0.03794186]
[1748062348023,5.6779,176.07,176.06,0.03794186]
[1748062350627,117.2,176.07,175.95,3.9498]
[1748062350924,5.6795,176.03,175.99,5.6804]
[1748062351426,5.72286203,176.03,175.99,5.71943369]
[1748062351824,0.04336203,176.03,175.99,0.03903369]
[1748062353529,0.04336203,176.03,176.0,5.6801]
[1748062354130,0.04336203,176.03,176.01,5.6798]
[1748062354628,0.04336203,176.03,176.02,5.6796]
[1748062354827,0.04336203,176.03,175.99,117.23903369]
[1748062355527,0.04336203,176.03,176.0,5.6801]
[1748062355726,0.04336203,176.03,175.99,0.03903369]
[1748062355926,0.04336203,176.03,176.0,5.6801]
[1748062356530,5.6801,176.01,175.99,0.03903369]
[1748062357429,5.6802,176.0,175.99,0.03903369]
[1748062365836,5.6815,175.97,175.93,5.6824]
[1748062366831,5.72215951,175.97,175.93,5.71884463]
[1748062367535,0.04065951,175.97,175.94,5.6821]
[1748062368236,5.72195951,175.97,175.93,5.71884463]
[1748062369338,0.04065951,175.97,175.93,0.03644463]
[1748062369940,5.6816,175.96,175.93,0.03644463]
[1748062371639,0.04065951,175.97,175.93,0.03644463]
[1748062373543,5.72185951,175.97,175.94,5.6821]
[1748062373844,0.04065951,175.97,175.93,0.03644463]
[1748062374144,0.04065951,175.97,175.95,5.6817]
[1748062374345,0.04065951,175.97,175.93,0.03644463]
[1748062375543,5.72205951,175.97,175.94,5.682]
[1748062377046,0.04065951,175.97,175.93,0.03644463]
[1748062377538,0.04065951,175.97,175.94,116.32]
[1748062377743,0.04065951,175.97,175.94,118.2777]
[1748062378140,0.04065951,175.97,175.96,5.6815]
[1748062380651,0.04065951,175.97,175.94,118.2777]
[1748062380847,0.04065951,175.97,175.93,0.03644463]
[1748062381248,116.36065951,175.97,175.93,0.03644463]
[1748062382557,5.6821,175.94,175.93,0.03644463]
[1748062383447,0.04065951,175.97,175.93,0.03644463]
[1748062383947,0.04065951,175.97,175.94,5.6819]
[1748062384653,0.04065951,175.97,175.95,5.6818]
[1748062384841,0.04065951,175.97,175.93,0.03644463]
[1748062385237,0.04065951,175.97,175.94,5.6821]
[1748062386253,0.04065951,175.97,175.96,5.6815]
[1748062391956,0.04065951,175.97,175.95,5.6817]
[1748062392256,0.04065951,175.97,175.94,1.9836]
[1748062393159,0.04065951,175.97,175.95,5.6818]
[1748062393552,116.32,176.08,175.95,122.0]
[1748062393752,116.32,176.08,175.96,1.8894]
[1748062393955,5.6785,176.06,175.97,107.96]
[1748062394456,0.03958454,176.03,176.02,5.6794]
[1748062408165,0.03958454,176.03,176.0,5.71917551]
[1748062408368,0.03958454,176.03,176.0,0.03907551]
[1748062408765,5.71888454,176.03,176.0,5.71917551]
[1748062409072,0.03958454,176.03,176.0,0.03907551]
[1748062409267,5.6798,176.02,176.0,0.03907551]
[1748062413171,0.03958454,176.03,176.0,5.71927551]
[1748062413471,0.03958454,176.03,176.0,0.03907551]
[1748062413768,0.03958454,176.03,176.01,5.6799]
[1748062413966,0.03958454,176.03,176.0,0.03907551]
[1748062414871,5.6808,175.99,175.94,122.1619]
[1748062415060,1.899,176.02,175.94,5.6819]
[1748062415582,5.6811,175.98,175.94,5.6819]
[1748062415971,5.72359594,175.98,175.94,5.71780266]
[1748062416174,0.04249594,175.98,175.94,5.71780266]
[1748062416374,0.04249594,175.98,175.95,5.6818]
[1748062416774,5.72359594,175.98,175.94,0.03590266]
[1748062416976,0.04249594,175.98,175.96,5.6812]
[1748062417277,0.04249594,175.98,175.94,0.03590266]
[1748062417880,0.04249594,175.98,175.96,5.6813]
[1748062418778,5.72339594,175.98,175.95,5.6817]
[1748062419880,5.72339594,175.98,175.94,5.71790266]
[1748062420179,5.72339594,175.98,175.94,0.03590266]
[1748062420480,0.04249594,175.98,175.95,5.6816]
[1748062420676,0.04249594,175.98,175.94,0.03590266]
[1748062422081,0.04249594,175.98,175.95,5.6816]
[1748062422682,5.72359594,175.98,175.94,5.71790266]
[1748062424181,5.72359594,175.98,175.95,5.6818]
[1748062424986,0.04249594,175.98,175.96,5.6815]
[1748062425482,0.04249594,175.98,175.97,5.6812]
[1748062432889,116.54249594,175.98,175.94,0.03590266]
[1748062433090,4.57741295,175.96,175.87,5.33880281]
[1748062433288,5.6832,175.91,175.87,11.02300281]
[1748062433684,5.6836,175.9,175.87,11.02300281]
[1748062433987,5.6836,175.9,175.87,11.05992563]
[1748062434289,0.04167139,175.9,175.87,5.37572563]
[1748062434790,0.04167139,175.9,175.87,11.05992563]
[1748062435391,0.04167139,175.9,175.88,5.6841]
[1748062435789,0.04167139,175.9,175.89,5.6838]
[1748062437298,137.91583799,176.04,175.89,5.68]
[1748062437299,3.856,176.02,175.89,5.68]
[1748062437484,3.856,176.02,175.88,120.40188751]
[1748062437686,3.856,176.02,175.95,5.6816]
[1748062438089,0.04249096,176.0,175.97,0.04203329]
[1748062439391,0.04249096,176.0,175.97,5.72313329]
[1748062442198,0.04249096,176.0,175.98,5.6808]
[1748062443384,0.04249096,176.0,175.99,5.6805]
[1748062443588,115.82,176.09,175.98,115.82]
[1748062444198,115.82,176.09,176.01,5.6796]
[1748062444492,0.03955158,176.07,176.03,0.03697844]
[1748062444796,5.6788,176.05,176.03,0.03697844]
[1748062445397,5.6783,176.06,176.03,0.03697844]
[1748062446503,5.6787,176.05,176.03,0.03697844]
[1748062446998,0.03955158,176.07,176.03,0.03697844]
[1748062447301,5.6785,176.06,176.03,0.03697844]
[1748062447498,0.03955158,176.07,176.03,0.03697844]
[1748062447993,5.6789,176.04,176.03,0.03697844]
[1748062448390,121.722,176.06,175.95,115.8]
[1748062448696,4.58188751,176.04,175.95,115.8]
[1748062449001,5.922,176.06,175.95,115.8]
[1748062449297,0.0412867,176.02,175.99,0.04030489]
[1748062450603,5.6802,176.01,175.99,0.04030489]
[1748062452302,5.6802,176.0,175.99,0.04030489]
[1748062455806,0.0412867,176.02,175.99,0.04030489]
[1748062457108,0.0412867,176.02,176.01,5.6799]
[1748062466815,0.0412867,176.02,176.01,113.6199]
[1748062467815,5.8579,176.14,176.08,5.6776]
[1748062468015,115.66,176.13,176.08,5.6776]
[1748062468715,5.6769,176.11,176.07,5.6778]
[1748062468916,5.71562488,176.11,176.07,0.03601974]
[1748062469602,0.03872488,176.11,176.07,0.03601974]
[1748062470424,5.6773,176.09,176.07,0.03601974]
[1748062470818,5.6771,176.1,176.07,0.03601974]
[1748062471118,0.03872488,176.11,176.07,0.03601974]
[1748062472218,5.6776,176.08,176.07,0.03601974]
[1748062478923,5.6776,176.08,176.07,1.974e-05]
[1748062489839,5.679,176.04,176.01,5.6798]
[1748062490039,115.64,176.08,175.99,606.4]
[1748062490338,5.6792,176.04,176.0,5.68]
[1748062490739,115.64,176.08,175.99,606.4]
[1748062491040,0.04208715,176.04,176.01,5.6796]
[1748062493541,0.04208715,176.04,176.0,5.719842]
[1748062493844,0.04208715,176.04,176.0,0.039642]
[1748062494246,5.6795,176.03,176.0,0.039642]
[1748062495343,0.04208715,176.04,176.0,0.039642]
[1748062496144,5.6793,176.03,176.0,0.039642]
[1748062497440,5.6793,176.03,176.0,5.719842]
[1748062497641,5.72108715,176.04,176.0,0.039642]
[1748062498253,0.04208715,176.04,176.02,5.6795]
[1748062498551,0.04208715,176.04,176.0,0.039642]
[1748062499546,0.04208715,176.04,176.02,5.6794]
[1748062500446,0.04208715,176.04,176.0,0.039642]
[1748062500948,0.04208715,176.04,176.02,5.6795]
[1748062502252,5.72108715,176.04,176.01,5.6797]
[1748062503251,0.04208715,176.04,176.02,5.6795]
[1748062503452,0.04208715,176.04,176.0,0.039642]
[1748062503751,0.04208715,176.04,176.03,5.6792]
[1748062504442,3.8491,176.1,176.0,115.219642]
[1748062504649,115.18,176.13,176.01,2.008]
[1748062504843,5.6772,176.1,176.01,2.008]
[1748062505043,5.6772,176.1,176.02,2.0296]
[1748062505446,0.03265747,176.08,176.04,0.03739137]
[1748062505744,0.03265747,176.08,176.04,115.21739137]
[1748062508053,0.03265747,176.08,176.07,5.6779]
[1748062518558,115.16,176.16,176.11,5.6765]
[1748062519154,115.16,176.16,176.08,115.14]
[1748062519458,115.16,176.16,176.1,0.04296665]
[1748062519851,5.6762,176.13,176.1,5.71996665]
[1748062520951,5.6763,176.12,176.1,0.04296665]
[1748062522852,118.9769,176.17,176.1,5.71996665]
[1748062523058,5.6761,176.13,176.1,5.71996665]
[1748062525761,5.6763,176.12,176.1,0.04296665]
[1748062526462,5.6761,176.13,176.1,5.71996665]
[1748062528460,2.0305,176.19,176.1,0.04296665]
[1748062529149,490.8,176.2,176.1,0.04296665]
[1748062529349,4.57083831,176.17,176.1,0.04296665]
[1748062529554,114.8,176.16,176.1,0.04296665]
[1748062529960,4.57083831,176.14,176.1,0.04296665]
[1748062531565,5.6767,176.11,176.1,0.04296665]
[1748062531764,114.83864933,176.12,176.03,114.8]
[1748062532663,5.6783,176.06,176.03,120.4791]
[1748062532859,5.7193883,176.06,176.03,0.04126442]
[1748062533166,0.0410883,176.06,176.03,0.04126442]
[1748062533566,5.7194883,176.06,176.03,0.04126442]
[1748062535262,5.6788,176.05,176.03,0.04126442]
[1748062535462,0.0410883,176.06,176.03,0.04126442]
[1748062535663,5.7194883,176.06,176.03,0.04126442]
[1748062537067,5.7194883,176.06,176.03,5.72036442]
[1748062538066,0.0410883,176.06,176.03,5.72036442]
[1748062539569,5.7193883,176.06,176.03,5.72036442]
[1748062540268,0.0410883,176.06,176.04,5.6789]
[1748062540769,0.0410883,176.06,176.03,0.04126442]
[1748062540969,0.0410883,176.06,176.03,5.72036442]
[1748062541967,5.7193883,176.06,176.03,5.72036442]
[1748062542268,0.0410883,176.06,176.03,5.72036442]
[1748062542569,5.7194883,176.06,176.03,5.72036442]
[1748062544070,5.7194883,176.06,176.03,0.04126442]
[1748062545670,5.7194883,176.06,176.03,5.72046442]
[1748062547667,132.55013741,176.22,176.03,10.29210273]
[1748062547874,13.99595048,176.16,176.06,4.57083831]
[1748062548069,13.99595048,176.16,176.07,222.74]
[1748062548270,13.99595048,176.16,176.13,5.676]
[1748062548477,13.99595048,176.16,176.07,222.74]
[1748062548671,13.99595048,176.16,176.1,0.03655255]
[1748062548873,13.99595048,176.16,176.14,5.6755]
[1748062550973,5.6747,176.17,176.14,5.6755]
[1748062551174,5.6747,176.17,176.14,5.71288931]
[1748062552879,5.6745,176.18,176.14,5.71288931]
[1748062553377,2.0471,176.19,176.14,0.03738931]
[1748062553675,5.6754,176.15,176.14,0.03738931]
[1748062553875,119.37083831,176.18,176.06,114.8]
[1748062554381,5.6762,176.13,176.09,5.6772]